fUSD/lending_fUSD_20241119
["ID","MTS","AMOUNT","RATE_DAILY","PERIOD"]
[342636630,1732013443594,-500.0,9.999e-05,2]
[342636632,1732013443603,-500.0,9.999e-05,2]
[342636634,1732013443612,-500.0,9.999e-05,2]
[342636636,1732013443621,-500.0,9.999e-05,2]
[342636637,1732013443630,-500.0,9.999e-05,2]
[342636640,1732013443640,-500.0,9.999e-05,2]
[342636641,1732013443650,-257.18998328,9.999e-05,2]
[342636643,1732013443659,-500.0,9.999e-05,2]
[342636644,1732013443668,-500.0,9.999e-05,2]
[342636645,1732013443677,-500.0,9.999e-05,2]
[342636646,1732013443686,-500.0,9.999e-05,2]
[342636647,1732013443696,-500.0,9.999e-05,2]
[342636648,1732013443705,-500.0,9.999e-05,2]
[342636649,1732013443714,-803.08,9.999e-05,2]
[342636650,1732013443724,-526.83,9.999e-05,2]
[342636651,1732013443735,-638.18,9.999e-05,2]
[342636652,1732013443745,-803.08,9.999e-05,2]
[342636653,1732013443755,-526.83,9.999e-05,2]
[342636654,1732013443766,-803.08,9.999e-05,2]
[342636655,1732013443776,-526.83,9.999e-05,2]
[342636656,1732013443786,-803.08,9.999e-05,2]
[342636657,1732013443795,-526.83,9.999e-05,2]
[342636658,1732013443805,-803.08,9.999e-05,2]
[342636659,1732013443818,-526.83,9.999e-05,2]
[342636660,1732013443830,-803.08,9.999e-05,2]
[342636661,1732013443840,-803.08,9.999e-05,2]
[342636662,1732013443849,-526.83,9.999e-05,2]
[342636663,1732013443861,-803.08,9.999e-05,2]
[342636664,1732013443871,-526.83,9.999e-05,2]
[342636665,1732013443880,-803.08,9.999e-05,2]
[342636666,1732013443889,-526.83,9.999e-05,2]
[342636667,1732013443899,-803.08,9.999e-05,2]
[342636668,1732013443910,-526.83,9.999e-05,2]
[342636669,1732013443919,-803.08,9.999e-05,2]
[342636670,1732013443928,-500.0,9.999e-05,2]
[342636671,1732013443943,-526.83,9.999e-05,2]
[342636672,1732013443952,-803.08,9.999e-05,2]
[342636673,1732013443962,-500.0,9.999e-05,2]
[342636674,1732013443971,-526.83,9.999e-05,2]
[342636675,1732013443980,-803.08,9.999e-05,2]
[342636676,1732013443989,-500.0,9.999e-05,2]
[342636677,1732013443998,-526.83,9.999e-05,2]
[342636678,1732013444007,-500.0,9.999e-05,2]
[342636679,1732013444016,-526.83,9.999e-05,2]
[342636680,1732013444027,-803.08,9.999e-05,2]
[342636681,1732013444037,-500.0,9.999e-05,2]
[342636682,1732013444046,-526.83,9.999e-05,2]
[342636683,1732013444056,-803.08,9.999e-05,2]
[342636684,1732013444065,-500.0,9.999e-05,2]
[342636685,1732013444074,-526.83,9.999e-05,2]
[342636686,1732013444083,-803.08,9.999e-05,2]
[342636687,1732013444104,-526.83,9.999e-05,2]
[342636688,1732013444115,-803.08,9.999e-05,2]
[342636689,1732013444125,-526.83,9.999e-05,2]
[342636690,1732013444134,-803.08,9.999e-05,2]
[342636691,1732013444144,-526.83,9.999e-05,2]
[342636692,1732013444153,-803.08,9.999e-05,2]
[342636693,1732013444162,-526.83,9.999e-05,2]
[342636694,1732013444173,-803.08,9.999e-05,2]
[342636695,1732013444183,-526.83,9.999e-05,2]
[342636696,1732013444192,-803.08,9.999e-05,2]
[342636697,1732013444202,-526.83,9.999e-05,2]
[342636698,1732013444211,-526.83,9.999e-05,2]
[342636699,1732013444221,-803.08,9.999e-05,2]
[342636700,1732013444230,-526.98823279,9.999e-05,2]
[342636701,1732013444240,-803.14,9.999e-05,2]
[342636702,1732013444250,-500.0,9.999e-05,2]
[342636703,1732013444259,-500.0,9.999e-05,2]
[342636704,1732013444268,-500.0,9.999e-05,2]
[342636705,1732013444278,-500.0,9.999e-05,2]
[342636706,1732013444287,-500.0,9.999e-05,2]
[342636707,1732013444296,-500.0,9.999e-05,2]
[342636708,1732013444305,-500.0,9.999e-05,2]
[342636709,1732013444314,-500.0,9.999e-05,2]
[342636710,1732013444324,-500.0,9.999e-05,2]
[342636711,1732013444333,-500.0,9.999e-05,2]
[342636712,1732013444343,-500.0,9.999e-05,2]
[342636713,1732013444352,-500.0,9.999e-05,2]
[342636714,1732013444362,-500.0,9.999e-05,2]
[342636715,1732013444371,-500.0,9.999e-05,2]
[342636716,1732013444381,-500.0,9.999e-05,2]
[342636717,1732013444390,-469.47,9.999e-05,2]
[342636718,1732013444400,-2000.0,9.999e-05,2]
[342636719,1732013444410,-500.0,9.999e-05,2]
[342636720,1732013444420,-500.0,9.999e-05,2]
[342636721,1732013444429,-500.0,9.999e-05,2]
[342636722,1732013444439,-500.0,9.999e-05,2]
[342636723,1732013444450,-500.0,9.999e-05,2]
[342636724,1732013444459,-500.0,9.999e-05,2]
[342636725,1732013444469,-500.0,9.999e-05,2]
[342636726,1732013444478,-500.0,9.999e-05,2]
[342636727,1732013444488,-500.0,9.999e-05,2]
[342636728,1732013444498,-500.0,9.999e-05,2]
[342636729,1732013444507,-564.66000001,9.999e-05,2]
[342636730,1732013444517,-500.0,9.999e-05,2]
[342636731,1732013444525,-500.0,9.999e-05,2]
[342636732,1732013444535,-500.0,9.999e-05,2]
[342636733,1732013444544,-500.0,9.999e-05,2]
[342636734,1732013444553,-500.0,9.999e-05,2]
[342636735,1732013444563,-500.0,9.999e-05,2]
[342636736,1732013444572,-500.0,9.999e-05,2]
[342636737,1732013444581,-500.0,9.999e-05,2]
[342636738,1732013444590,-500.0,9.999e-05,2]
[342636739,1732013444600,-287.7,9.999e-05,2]
[342636740,1732013444609,-500.0,9.999e-05,2]
[342636741,1732013444619,-500.0,9.999e-05,2]
[342636742,1732013444628,-500.0,9.999e-05,2]
[342636743,1732013444638,-500.0,9.999e-05,2]
[342636744,1732013444647,-500.0,9.999e-05,2]
[342636745,1732013444657,-500.0,9.999e-05,2]
[342636746,1732013444667,-570.4,9.999e-05,2]
[342636747,1732013444676,-500.0,9.999e-05,2]
[342636748,1732013444686,-500.0,9.999e-05,2]
[342636749,1732013444697,-500.0,9.999e-05,2]
[342636750,1732013444706,-500.0,9.999e-05,2]
[342636751,1732013444716,-500.0,9.999e-05,2]
[342636752,1732013444725,-500.0,9.999e-05,2]
[342636753,1732013444735,-500.0,9.999e-05,2]
[342636754,1732013444744,-500.0,9.999e-05,2]
[342636755,1732013444753,-500.0,9.999e-05,2]
[342636756,1732013444763,-500.0,9.999e-05,2]
[342636757,1732013444772,-500.0,9.999e-05,2]
[342636758,1732013444781,-500.0,9.999e-05,2]
[342636759,1732013444790,-500.0,9.999e-05,2]
[342636760,1732013444799,-500.0,9.999e-05,2]
[342636761,1732013444808,-539.62,9.999e-05,2]
[342636762,1732013444818,-798.48,9.999e-05,2]
[342636763,1732013444828,-798.48,9.999e-05,2]
[342636764,1732013444837,-798.48,9.999e-05,2]
[342636765,1732013444847,-500.0,9.999e-05,2]
[342636766,1732013444857,-798.48,9.999e-05,2]
[342636767,1732013444871,-500.0,9.999e-05,2]
[342636768,1732013444880,-798.48,9.999e-05,2]
[342636769,1732013444889,-500.0,9.999e-05,2]
[342636770,1732013444899,-798.48,9.999e-05,2]
[342636771,1732013444912,-500.0,9.999e-05,2]
[342636772,1732013444922,-798.48,9.999e-05,2]
[342636773,1732013444933,-500.0,9.999e-05,2]
[342636774,1732013444946,-798.48,9.999e-05,2]
[342636775,1732013444956,-500.0,9.999e-05,2]
[342636776,1732013444965,-798.48,9.999e-05,2]
[342636777,1732013444975,-500.0,9.999e-05,2]
[342636778,1732013444986,-798.48,9.999e-05,2]
[342636779,1732013444995,-500.0,9.999e-05,2]
[342636780,1732013445004,-500.0,9.999e-05,2]
[342636781,1732013445014,-798.48,9.999e-05,2]
[342636782,1732013445024,-500.0,9.999e-05,2]
[342636783,1732013445035,-798.48,9.999e-05,2]
[342636784,1732013445044,-500.0,9.999e-05,2]
[342636785,1732013445053,-798.48,9.999e-05,2]
[342636786,1732013445062,-500.0,9.999e-05,2]
[342636787,1732013445071,-798.48,9.999e-05,2]
[342636788,1732013445080,-500.0,9.999e-05,2]
[342636789,1732013445090,-798.48,9.999e-05,2]
[342636790,1732013445101,-500.0,9.999e-05,2]
[342636791,1732013445111,-798.48,9.999e-05,2]
[342636792,1732013445122,-500.0,9.999e-05,2]
[342636793,1732013445133,-798.48,9.999e-05,2]
[342636794,1732013445143,-798.48,9.999e-05,2]
[342636795,1732013445154,-798.48,9.999e-05,2]
[342636796,1732013445165,-798.48,9.999e-05,2]
[342636797,1732013445176,-798.48,9.999e-05,2]
[342636798,1732013445187,-798.48,9.999e-05,2]
[342636799,1732013445197,-798.48,9.999e-05,2]
[342636800,1732013445208,-500.0,9.999e-05,2]
[342636801,1732013445218,-798.71,9.999e-05,2]
[342636802,1732013445228,-500.0,9.999e-05,2]
[342636803,1732013445238,-500.0,9.999e-05,2]
[342636804,1732013445248,-500.0,9.999e-05,2]
[342636805,1732013445259,-500.0,9.999e-05,2]
[342636806,1732013445271,-500.0,9.999e-05,2]
[342636807,1732013445280,-500.0,9.999e-05,2]
[342636808,1732013445288,-500.0,9.999e-05,2]
[342636809,1732013445295,-500.0,9.999e-05,2]
[342636810,1732013445301,-500.0,9.999e-05,2]
[342636811,1732013445309,-500.0,9.999e-05,2]
[342636812,1732013445317,-500.0,9.999e-05,2]
[342636813,1732013445325,-500.0,9.999e-05,2]
[342636814,1732013445331,-500.0,9.999e-05,2]
[342636815,1732013445338,-500.0,9.999e-05,2]
[342636816,1732013445347,-289.94,9.999e-05,2]
[342636817,1732013445354,-500.0,9.999e-05,2]
[342636818,1732013445361,-500.0,9.999e-05,2]
[342636819,1732013445369,-500.0,9.999e-05,2]
[342636820,1732013445378,-500.0,9.999e-05,2]
[342636821,1732013445387,-500.0,9.999e-05,2]
[342636822,1732013445395,-500.0,9.999e-05,2]
[342636823,1732013445401,-500.0,9.999e-05,2]
[342636824,1732013445408,-500.0,9.999e-05,2]
[342636825,1732013445415,-500.0,9.999e-05,2]
[342636826,1732013445424,-500.0,9.999e-05,2]
[342636827,1732013445432,-500.0,9.999e-05,2]
[342636828,1732013445440,-418.33660402,9.999e-05,2]
[342636829,1732013445451,-500.0,9.999e-05,2]
[342636830,1732013445458,-500.0,9.999e-05,2]
[342636831,1732013445464,-500.0,9.999e-05,2]
[342636832,1732013445471,-500.0,9.999e-05,2]
[342636833,1732013445478,-500.0,9.999e-05,2]
[342636834,1732013445485,-500.0,9.999e-05,2]
[342636835,1732013445493,-500.0,9.999e-05,2]
[342636836,1732013445499,-500.0,9.999e-05,2]
[342636837,1732013445507,-500.0,9.999e-05,2]
[342636838,1732013445513,-500.0,9.999e-05,2]
[342636839,1732013445521,-500.0,9.999e-05,2]
[342636840,1732013445527,-500.0,9.999e-05,2]
[342636841,1732013445534,-409.28,9.999e-05,2]
[342636842,1732013445541,-500.0,9.999e-05,2]
[342636843,1732013445547,-500.0,9.999e-05,2]
[342636844,1732013445554,-500.0,9.999e-05,2]
[342636845,1732013445561,-500.0,9.999e-05,2]
[342636846,1732013445568,-500.0,9.999e-05,2]
[342636847,1732013445574,-500.0,9.999e-05,2]
[342636848,1732013445581,-500.0,9.999e-05,2]
[342636849,1732013445587,-500.0,9.999e-05,2]
[342636850,1732013445594,-466.81,9.999e-05,2]
[342636851,1732013445601,-500.0,9.999e-05,2]
[342636852,1732013445607,-500.0,9.999e-05,2]
[342636853,1732013445615,-646.36,9.999e-05,2]
[342636854,1732013445622,-500.0,9.999e-05,2]
[342636855,1732013445630,-500.0,9.999e-05,2]
[342636856,1732013445637,-500.0,9.999e-05,2]
[342636857,1732013445644,-500.0,9.999e-05,2]
[342636858,1732013445650,-500.0,9.999e-05,2]
[342636859,1732013445657,-500.0,9.999e-05,2]
[342636860,1732013445666,-500.0,9.999e-05,2]
[342636861,1732013445675,-500.0,9.999e-05,2]
[342636862,1732013445684,-500.0,9.999e-05,2]
[342636863,1732013445694,-500.0,9.999e-05,2]
[342636864,1732013445703,-500.0,9.999e-05,2]
[342636865,1732013445712,-500.0,9.999e-05,2]
[342636866,1732013445722,-500.0,9.999e-05,2]
[342636867,1732013445731,-500.0,9.999e-05,2]
[342636868,1732013445740,-500.0,9.999e-05,2]
[342636869,1732013445749,-500.0,9.999e-05,2]
[342636870,1732013445758,-500.0,9.999e-05,2]
[342636871,1732013445767,-280.5195191,9.999e-05,2]
[342636872,1732013445776,-500.0,9.999e-05,2]
[342636873,1732013445785,-158.11636296,9.999e-05,2]
[342636874,1732013445841,-500.0,9.999e-05,2]
[342636875,1732013445851,-500.0,9.999e-05,2]
[342636876,1732013445862,-517.92,9.999e-05,2]
[342636877,1732013445872,-424.32,9.999e-05,2]
[342636878,1732013445881,-517.92,9.999e-05,2]
[342636879,1732013445890,-517.92,9.999e-05,2]
[342636880,1732013445899,-517.92,9.999e-05,2]
[342636881,1732013445909,-517.92,9.999e-05,2]
[342636882,1732013445918,-517.92,9.999e-05,2]
[342636883,1732013445927,-517.92,9.999e-05,2]
[342636884,1732013445938,-517.92,9.999e-05,2]
[342636886,1732013445949,-517.92,9.999e-05,2]
[342636887,1732013445958,-517.92,9.999e-05,2]
[342636889,1732013445967,-517.92,9.999e-05,2]
[342636890,1732013445976,-517.92,9.999e-05,2]
[342636891,1732013445985,-517.92,9.999e-05,2]
[342636892,1732013445994,-517.92,9.999e-05,2]
[342636893,1732013446003,-500.0,9.999e-05,2]
[342636896,1732013446012,-517.92,9.999e-05,2]
[342636898,1732013446021,-500.0,9.999e-05,2]
[342636899,1732013446031,-517.92,9.999e-05,2]
[342636900,1732013446040,-500.0,9.999e-05,2]
[342636901,1732013446049,-517.92,9.999e-05,2]
[342636902,1732013446058,-500.0,9.999e-05,2]
[342636904,1732013446067,-517.92,9.999e-05,2]
[342636906,1732013446076,-500.0,9.999e-05,2]
[342636907,1732013446084,-517.92,9.999e-05,2]
[342636909,1732013446094,-500.0,9.999e-05,2]
[342636911,1732013446103,-517.92,9.999e-05,2]
[342636912,1732013446111,-500.0,9.999e-05,2]
[342636913,1732013446120,-517.92,9.999e-05,2]
[342636914,1732013446129,-517.92,9.999e-05,2]
[342636915,1732013446138,-518.14636579,9.999e-05,2]
[342636916,1732013446147,-500.0,9.999e-05,2]
[342636917,1732013446156,-7056.32874081,9.999e-05,2]
[342636918,1732013446166,-7056.32874081,9.999e-05,2]
[342636919,1732013446175,-7056.32874081,0.0001,2]
[342636920,1732013446183,-312104.49526951,0.0001,2]
[342636921,1732013446193,-11221.39376432,0.0001,2]
[342636922,1732013446202,-7056.32874081,0.0001,2]
[342636923,1732013446212,-151.37473885,0.0001,2]
[342636924,1732013446221,-151.37473881,0.0001,2]
[342636925,1732013446234,-151.37473881,0.0001,2]
[342636926,1732013446243,-151.37473881,0.0001,2]
[342636927,1732013446252,-138702.92637359,0.0001,2]
[342636928,1732013446261,-13450560.8519943,0.0001,2]
[342636929,1732013446515,-36800.0,0.0001,2]
[342636930,1732013446527,-627.84717972,0.0001,2]
[342636931,1732013446576,-500.0,9.999e-05,2]
[342636932,1732013446585,-3458.40335362,0.0001,2]
[342636933,1732013446851,-500.0,9.999e-05,2]
[342636934,1732013446867,-500.0,9.999e-05,2]
[342636935,1732013446876,-500.0,9.999e-05,2]
[342636936,1732013446887,-500.0,9.999e-05,2]
[342636937,1732013446896,-500.0,9.999e-05,2]
[342636938,1732013446907,-500.0,9.999e-05,2]
[342636939,1732013446916,-54238.26791112,0.0001,2]
[342636940,1732013446928,-24679.284633,0.0001,2]
[342636941,1732013446947,-1902.19130534,0.0001,2]
[342636942,1732013447054,-592.6801185,0.0001,2]
[342636943,1732013447070,-6211.14649346,0.0001,2]
[342636944,1732013447082,-5992.4968999,0.0001,2]
[342636945,1732013447093,-7306.82862446,0.0001,2]
[342636946,1732013447105,-6291.52857404,0.0001,2]
[342636947,1732013447115,-443.04746471,0.0001,2]
[342636948,1732013447148,-412.19999999,0.0001,2]
[342636949,1732013447159,-1879.09675947,0.0001,2]
[342636950,1732013447169,-32420.58142189,0.0001,2]
[342636951,1732013447180,-318042.1195696,0.0001,2]
[342636952,1732013498177,800.0,8.22e-05,2]
[342636959,1732014030756,1418.14,8.219e-05,2]
[342636961,1732014229101,785.55,8.581e-05,2]
[342636962,1732014294121,1109.99823231,0.00023,120]
[342636964,1732014357504,200.0,0.00023,120]
[342636965,1732014398904,43269.42247285,0.00023,120]
[342636969,1732014444888,550.07,8.561e-05,2]
[342636973,1732014475725,505.32,8.558e-05,2]
[342636980,1732014606333,168.72,8.566e-05,2]
[342636981,1732014612484,23900.0,8.566e-05,2]
[342636994,1732014632367,-250.0,8.658e-05,2]
[342636996,1732014632376,-1062.8324079,8.684e-05,2]
[342636997,1732014632388,-789.5875921,8.684e-05,2]
[342636998,1732014632398,-6581.47369801,8.684e-05,2]
[342636999,1732014632706,-2969.13440566,8.684e-05,2]
[342637000,1732014632716,-250.0,8.685e-05,2]
[342637001,1732014632729,-200.0,8.698e-05,2]
[342637002,1732014632739,-1000.0,8.734e-05,2]
[342637003,1732014632752,-250.0,8.768e-05,2]
[342637004,1732014632762,-165.62,8.79e-05,2]
[342637005,1732014632772,-170.81,8.871e-05,2]
[342637006,1732014632782,-500.0,9e-05,3]
[342637007,1732014632791,-390.45,9.041e-05,2]
[342637008,1732014632802,-1000.0,9.1e-05,3]
[342637009,1732014632812,-763.76,9.141e-05,2]
[342637010,1732014632822,-433.13,9.141e-05,2]
[342637011,1732014632832,-433.13,9.141e-05,2]
[342637012,1732014632842,-433.13,9.141e-05,2]
[342637013,1732014632852,-1500.0,9.2e-05,3]
[342637014,1732014632862,-150.0,9.278e-05,2]
[342637015,1732014632872,-150.0,9.278e-05,2]
[342637016,1732014632882,-2000.0,9.3e-05,3]
[342637017,1732014632892,-2500.0,9.4e-05,3]
[342637018,1732014632903,-183.756832,9.458e-05,2]
[342637019,1732014632912,-500.0,9.5e-05,3]
[342637020,1732014632923,-150.0,9.515e-05,2]
[342637021,1732014632933,-800.0,9.59e-05,2]
[342637022,1732014632943,-500.0,9.6e-05,3]
[342637023,1732014632953,-505.32,9.628e-05,2]
[342637024,1732014632962,-452.34,9.665e-05,2]
[342637025,1732014632973,-150.0,9.665e-05,2]
[342637026,1732014632984,-814.83048798,9.665e-05,2]
[342637027,1732014632997,-21167.18362002,9.665e-05,2]
[342637028,1732014633007,-206.43,9.67e-05,2]
[342637029,1732014633016,-210.52,9.67e-05,2]
[342637030,1732014633026,-150.99,9.67e-05,2]
[342637031,1732014633035,-8970.42851121,9.67e-05,2]
[342637032,1732014633056,-631.62901707,9.67e-05,2]
[342637033,1732014633068,-595.06568547,9.67e-05,2]
[342637034,1732014633080,-13130.40678625,9.67e-05,2]
[342637035,1732014633089,-580.60889675,9.67e-05,2]
[342637036,1732014633102,-2519.84998623,9.67e-05,2]
[342637037,1732014633114,-6899.53111702,9.67e-05,2]
[342637038,1732014633123,-1344.37,9.67e-05,2]
[342637039,1732014633134,-2238.26389774,9.67e-05,2]
[342637040,1732014633164,-8.50610226,9.67e-05,2]
[342637041,1732014633174,-183.756832,9.695e-05,2]
[342637042,1732014633185,-500.0,9.7e-05,3]
[342637043,1732014633194,-7649.343,9.71e-05,2]
[342637044,1732014633204,-4505.9501,9.798e-05,2]
[342637045,1732014633214,-8358.31409359,9.8e-05,2]
[342637046,1732014633228,-14149.18590641,9.8e-05,2]
[342637047,1732014633239,-500.0,9.8e-05,3]
[342637048,1732014633249,-645.688,9.822e-05,2]
[342637049,1732014633262,-1926.0,9.822e-05,2]
[342637050,1732014633272,-560.0,9.822e-05,2]
[342637051,1732014633281,-814.0,9.822e-05,2]
[342637052,1732014633291,-3747.0,9.822e-05,2]
[342637053,1732014633302,-1260.0,9.822e-05,2]
[342637054,1732014633311,-923.0,9.822e-05,2]
[342637055,1732014633321,-3513.0,9.822e-05,2]
[342637056,1732014633331,-1000.0,9.826e-05,2]
[342637057,1732014633341,-1162.507,9.858e-05,2]
[342637058,1732014633350,-151.694,9.858e-05,2]
[342637059,1732014633360,-5947.551,9.858e-05,2]
[342637060,1732014633369,-13652.0,9.858e-05,2]
[342637061,1732014633379,-500.0,9.873e-05,2]
[342637062,1732014633389,-500.0,9.873e-05,2]
[342637063,1732014633398,-500.0,9.873e-05,2]
[342637064,1732014633408,-500.0,9.897e-05,2]
[342637065,1732014633418,-500.0,9.897e-05,2]
[342637066,1732014633427,-500.0,9.897e-05,2]
[342637067,1732014633436,-500.0,9.897e-05,2]
[342637068,1732014633446,-500.0,9.897e-05,2]
[342637069,1732014633455,-215.41,9.897e-05,2]
[342637070,1732014633465,-500.0,9.897e-05,2]
[342637071,1732014633474,-500.0,9.897e-05,2]
[342637072,1732014633485,-500.0,9.897e-05,2]
[342637073,1732014633495,-500.0,9.897e-05,2]
[342637074,1732014633504,-500.0,9.897e-05,2]
[342637075,1732014633514,-150.0,9.897e-05,2]
[342637076,1732014633524,-500.0,9.897e-05,2]
[342637077,1732014633534,-500.0,9.897e-05,2]
[342637078,1732014633544,-500.0,9.897e-05,2]
[342637079,1732014633553,-818.59,9.897e-05,2]
[342637080,1732014633563,-533.64,9.897e-05,2]
[342637081,1732014633573,-500.0,9.897e-05,2]
[342637082,1732014633583,-500.0,9.897e-05,2]
[342637083,1732014633593,-500.0,9.897e-05,2]
[342637084,1732014633603,-765.19,9.897e-05,2]
[342637085,1732014633612,-500.0,9.897e-05,2]
[342637086,1732014633621,-500.0,9.897e-05,2]
[342637087,1732014633631,-398.31979453,9.897e-05,2]
[342637088,1732014633640,-1000.0,9.897e-05,2]
[342637089,1732014633650,-500.0,9.897e-05,2]
[342637090,1732014633659,-500.0,9.897e-05,2]
[342637091,1732014633669,-719.54,9.897e-05,2]
[342637092,1732014633678,-868.04,9.897e-05,2]
[342637093,1732014633688,-500.0,9.897e-05,2]
[342637094,1732014633697,-500.0,9.897e-05,2]
[342637095,1732014633707,-500.0,9.897e-05,2]
[342637096,1732014633717,-500.0,9.897e-05,2]
[342637097,1732014633728,-500.0,9.897e-05,2]
[342637098,1732014633738,-724.86,9.897e-05,2]
[342637099,1732014633747,-469.06,9.897e-05,2]
[342637100,1732014633757,-500.0,9.897e-05,2]
[342637101,1732014633766,-500.0,9.897e-05,2]
[342637102,1732014633776,-500.0,9.897e-05,2]
[342637103,1732014633795,-500.0,9.897e-05,2]
[342637104,1732014633806,-500.0,9.897e-05,2]
[342637105,1732014633816,-500.0,9.897e-05,2]
[342637106,1732014633826,-500.0,9.897e-05,2]
[342637107,1732014633836,-500.0,9.897e-05,2]
[342637108,1732014633846,-500.0,9.897e-05,2]
[342637109,1732014633856,-500.0,9.897e-05,2]
[342637110,1732014633866,-500.0,9.897e-05,2]
[342637111,1732014633876,-500.0,9.897e-05,2]
[342637112,1732014633886,-500.0,9.897e-05,2]
[342637113,1732014633896,-500.0,9.897e-05,2]
[342637114,1732014633906,-500.0,9.897e-05,2]
[342637115,1732014633916,-500.0,9.897e-05,2]
[342637116,1732014633926,-500.0,9.897e-05,2]
[342637117,1732014633936,-500.0,9.897e-05,2]
[342637118,1732014633947,-500.0,9.897e-05,2]
[342637119,1732014633956,-500.0,9.897e-05,2]
[342637120,1732014633967,-880.07,9.897e-05,2]
[342637121,1732014633978,-500.0,9.897e-05,2]
[342637122,1732014633988,-500.0,9.897e-05,2]
[342637123,1732014633998,-500.0,9.897e-05,2]
[342637124,1732014634009,-500.0,9.897e-05,2]
[342637125,1732014634019,-500.0,9.897e-05,2]
[342637126,1732014634030,-500.0,9.897e-05,2]
[342637127,1732014634039,-158.11636296,9.897e-05,2]
[342637128,1732014634050,-500.0,9.897e-05,2]
[342637129,1732014634060,-500.0,9.897e-05,2]
[342637130,1732014634070,-500.0,9.897e-05,2]
[342637131,1732014634080,-527.22,9.897e-05,2]
[342637132,1732014634090,-500.0,9.897e-05,2]
[342637133,1732014634100,-500.0,9.897e-05,2]
[342637134,1732014634110,-172948.3172,9.898e-05,2]
[342637135,1732014634120,-37903.5297,9.898e-05,2]
[342637136,1732014634130,-500.0,9.899e-05,2]
[342637137,1732014634140,-500.0,9.899e-05,2]
[342637138,1732014634150,-404.39673803,9.899e-05,2]
[342637139,1732014634160,-500.0,9.899e-05,2]
[342637140,1732014634170,-500.0,9.899e-05,2]
[342637141,1732014634181,-500.0,9.899e-05,2]
[342637142,1732014634190,-500.0,9.899e-05,2]
[342637143,1732014634200,-500.0,9.899e-05,2]
[342637144,1732014634211,-500.0,9.899e-05,2]
[342637145,1732014634220,-150.0,9.899e-05,2]
[342637146,1732014634232,-500.0,9.899e-05,2]
[342637147,1732014634242,-500.0,9.899e-05,2]
[342637148,1732014634253,-818.59,9.899e-05,2]
[342637149,1732014634266,-533.64,9.899e-05,2]
[342637150,1732014634276,-765.19,9.899e-05,2]
[342637151,1732014634287,-500.0,9.899e-05,2]
[342637152,1732014634297,-500.0,9.899e-05,2]
[342637153,1732014634308,-1000.0,9.899e-05,2]
[342637154,1732014634318,-500.0,9.899e-05,2]
[342637155,1732014634329,-719.54,9.899e-05,2]
[342637156,1732014634341,-868.04,9.899e-05,2]
[342637157,1732014634351,-264.32,9.899e-05,2]
[342637158,1732014634361,-500.0,9.899e-05,2]
[342637159,1732014634371,-500.0,9.899e-05,2]
[342637160,1732014634381,-500.0,9.899e-05,2]
[342637161,1732014634391,-724.86,9.899e-05,2]
[342637162,1732014634401,-500.0,9.899e-05,2]
[342637163,1732014634413,-500.0,9.899e-05,2]
[342637164,1732014634423,-500.0,9.899e-05,2]
[342637165,1732014634432,-500.0,9.899e-05,2]
[342637166,1732014634442,-500.0,9.899e-05,2]
[342637167,1732014634452,-500.0,9.899e-05,2]
[342637168,1732014634462,-500.0,9.899e-05,2]
[342637169,1732014634472,-500.0,9.899e-05,2]
[342637170,1732014634485,-500.0,9.899e-05,2]
[342637171,1732014634497,-500.0,9.899e-05,2]
[342637172,1732014634507,-500.0,9.899e-05,2]
[342637173,1732014634517,-500.0,9.899e-05,2]
[342637174,1732014634527,-500.0,9.899e-05,2]
[342637175,1732014634538,-500.0,9.899e-05,2]
[342637176,1732014634548,-500.0,9.899e-05,2]
[342637177,1732014634558,-500.0,9.899e-05,2]